[Event "2nd AICF Women-GM 2018"]
[Site "Hyderabad"]
[Date "2018.08.14"]
[Round "8"]
[White "Munguntuul, Batkhuyag"]
[Black "Pratyusha, Bodda"]
[Result "1/2-1/2"]
[ECO "C81"]
[WhiteElo "2428"]
[BlackElo "2294"]
[Annotator "NA"]
[PlyCount "106"]
[EventDate "2018.08.09"]
[EventType "tourn"]
[EventCountry "IND"]
[SourceTitle "playchess.com"]
[Source "ChessBase"]
[SourceQuality "1"]
[TimeControl "40/5400+30:1800+30"]

{[%evp 9,80,32,44,32767,32767,32767,32767,41,37,27,31,11,25,15,18,8,22,12,21,32767,32767,32767,32767,32767,32767,16,32767,32767,79,73,95,58,57,56,70,72,76,56,55,51,58,52,32767,32767,32767,67,32767,66,100,31,72,75,87,79,79,71,77,30,28,2,20,27,56,74,116,18,129,0,8,0,0,0,38]} 1. e4 {[%emt 0:00:00]} e5 {[%emt 0:00:00]} 2. Nf3 {[%emt 0:00:00]} Nc6 {[%emt 0:00:00]} 3. Bb5 {[%emt 0:00:00]} a6 {[%emt 0:00:00]} 4. Ba4 {[%emt 0:00:00]} Nf6 {[%emt 0:00:00]} 5. O-O {[%emt 0:00:00]} Nxe4 {[%emt 0:00:02]} 6. d4 {[%emt 0:00:24]} b5 {[%emt 0:00:05]} 7. Bb3 {[%emt 0:00:05]} d5 {[%emt 0:00:04]} 8. dxe5 {[%emt 0:00:09]} Be6 {[%emt 0:00:03]} 9. Qe2 {[%emt 0:00:18]} Be7 {[%emt 0:00:20]} 10. Rd1 {[%emt 0:00:26]} O-O {[%emt 0:00:24] [#]} 11. c4 $1 {[%emt 0:01:30]} bxc4 {[%emt 0:00:19] [#]} 12. Bxc4 $1 {[%emt 0:00:06]} Bc5 {[%emt 0:00:03]} 13. Be3 {[%emt 0:00:31]} Bxe3 {[%emt 0:00:18] LiveBook: 148 Games} 14. Qxe3 {[%emt 0:00:03]} Qb8 {[%emt 0:00:06]} 15. Bb3 {[%emt 0:00:35]} Na5 {[%emt 0:00:04]} 16. Nbd2 {[%emt 0:00:36]} Qa7 {[%emt 0:01:04]} 17. Qxa7 {[%emt 0:01:30]} Rxa7 {[%emt 0:00:03]} 18. Rac1 {[%emt 0:03:10]} Nxb3 {[%emt 0:21:58]} (18... c5 $11 {keeps the balance.}) 19. Nxb3 {[%emt 0:01:26]} a5 {[%emt 0:06:32]} 20. Nfd4 {[%emt 0:08:21]} a4 {[%emt 0:00:59]} 21. Nc5 {[%emt 0:02:47]} Nxc5 {[%emt 0:00:22]} 22. Rxc5 {[%emt 0:00:03]} Rb7 {[%emt 0:00:23]} 23. Rd2 {[%emt 0:03:11]} Rfb8 {[%emt 0:01:34]} 24. b3 {[%emt 0:01:22]} axb3 {[%emt 0:00:15]} 25. axb3 {[%emt 0:00:16]} Ra8 {[%emt 0:00:04]} 26. f4 {[%emt 0:04:10]} g6 {[%emt 0:00:04]} 27. Kf2 {[%emt 0:00:47]} Kf8 {[%emt 0:00:45]} 28. Rdc2 {[%emt 0:08:33]} Raa7 {[%emt 0:03:29]} 29. Ke3 {[%emt 0:02:03]} (29. R2c3 $16) 29... h5 {[%emt 0:00:37]} 30. g3 {[%emt 0:07:13]} Kg8 {[%emt 0:02:04]} 31. R2c3 {[%emt 0:07:40]} Kf8 {[%emt 0:00:42]} 32. h4 {[%emt 0:06:59]} Kg8 {[%emt 0:00:36]} 33. f5 {[%emt 0:01:57]} gxf5 {[%emt 0:00:32]} 34. Kf4 {[%emt 0:00:24]} Rb4 {[%emt 0:07:28]} 35. Rd3 {[%emt 0:00:15]} Kh7 {[%emt 0:03:40] [#]} 36. Kg5 $1 {[%emt 0:10:19]} Rb6 {[%emt 0:01:35]} 37. Kxh5 {[%emt 0:05:18]} (37. Rdc3 $16) 37... Bc8 {[%emt 0:01:32] [#]} (37... Bd7 $1 $11) 38. Kg5 {[%emt 0:04:33]} ({And not} 38. Rxd5 Rh6+ 39. Kg5 Rg6+ 40. Kf4 Rg4+ 41. Ke3 Ra2 $15) ({White has to play} 38. Rc6 $1 $16) 38... Rg6+ {[%emt 0:00:23]} 39. Kf4 {[%emt 0:00:02]} Rg4+ {[%emt 0:00:16]} 40. Kf3 {[%emt 0:00:02]} Re4 $14 {[%emt 0:02:31]} 41. b4 {[%emt 0:35:34]} Be6 {[%emt 0:32:47]} 42. b5 {[%emt 0:04:52]} Rb7 {[%emt 0:01:36]} 43. Rc6 {[%emt 0:00:00]} Rxe5 {[%emt 0:00:00]} 44. Re3 {[%emt 0:00:00]} Re4 {[%emt 0:00:00]} 45. Nxe6 {[%emt 0:00:00]} fxe6 {[%emt 0:00:00]} 46. Rxe6 {[%emt 0:00:00]} Rxb5 {[%emt 0:00:00]} 47. Re7+ {[%emt 0:00:00]} Rxe7 {[%emt 0:00:00]} 48. Rxe7+ {[%emt 0:00:00]} Kg6 {[%emt 0:00:00]} 49. Rxc7 {[%emt 0:00:00]} Rb3+ {[%emt 0:00:00]} 50. Kf4 {[%emt 0:00:00]} Rb4+ {[%emt 0:00:00]} 51. Ke5 {[%emt 0:00:00]} Re4+ {[%emt 0:00:00]} 52. Kxd5 {[%emt 0:00:00]} Re3 {[%emt 0:00:00]} 53. Rc8 {[%emt 0:00:00]} Kg7 {[%emt 0:00:00] Ke4} 1/2-1/2

[Event "2nd AICF Women-GM 2018"]
[Site "Hyderabad"]
[Date "2018.08.14"]
[Round "8"]
[White "Hoang, Thi Bao Tram"]
[Black "Mahalakshmi, M."]
[Result "1/2-1/2"]
[ECO "A46"]
[WhiteElo "2364"]
[BlackElo "2177"]
[Annotator "NA"]
[PlyCount "144"]
[EventDate "2018.08.09"]
[EventType "tourn"]
[EventCountry "IND"]
[SourceTitle "playchess.com"]
[Source "ChessBase"]
[SourceQuality "1"]
[TimeControl "40/5400+30:1800+30"]

1. d4 {[%emt 0:00:00]} Nf6 {[%emt 0:00:00]} 2. Nf3 {[%emt 0:00:15]} e6 {[%emt 0:00:00]} 3. e3 {[%emt 0:00:16]} b6 {[%emt 0:01:55]} 4. Bd3 {[%emt 0:00:16]} Bb7 {[%emt 0:00:20]} 5. Nbd2 {[%emt 0:00:12]} c5 {[%emt 0:01:46]} 6. O-O {[%emt 0:00:25]} cxd4 {[%emt 0:01:21]} 7. exd4 {[%emt 0:00:09]} Be7 {[%emt 0:00:41]} 8. Qe2 {[%emt 0:00:20]} O-O {[%emt 0:01:59]} 9. c3 {[%emt 0:00:21]} d6 {[%emt 0:01:40]} 10. Re1 {[%emt 0:00:36]} Nbd7 {[%emt 0:02:53] A47: 1 d4 Nf6 2 Nf3 b6: Torre, London and Colle Systems} 11. Nf1 {[%emt 0:02:27]} Re8 {[%emt 0:02:26] LiveBook: 12 Partien} 12. Ng3 {[%emt 0:03:01]} Qc7 {[%emt 0:03:09]} 13. Ng5 {[%emt 0:02:04]} Bf8 {[%emt 0:05:50]} 14. Nh5 $146 {[%emt 0:12:46] Qc} ({Predecessor:} 14. Qc2 g6 15. Bd2 Rac8 16. h4 {0-1 (37) Rettore,L (2115)-Martinez,R (2441) Milan 2012}) 14... Qc6 {[%emt 0:05:28]} 15. Nxf6+ {[%emt 0:02:34] Nx} Nxf6 {[%emt 0:01:03]} 16. f3 {[%emt 0:00:17]} Qc7 {[%emt 0:05:34]} 17. Ne4 {[%emt 0:04:07]} Be7 {[%emt 0:03:35]} 18. Qc2 {[%emt 0:03:56]} h6 {[%emt 0:06:54]} 19. Ng3 {[%emt 0:04:46]} e5 {[%emt 0:05:00]} 20. Be3 {[%emt 0:00:32]} Nd5 {[%emt 0:01:19]} 21. Bf2 {[%emt 0:00:14] Nf} Nf4 {[%emt 0:02:01]} 22. Bf1 {[%emt 0:00:57]} a6 {[%emt 0:09:28]} 23. Rad1 {[%emt 0:03:47] Rad} Rad8 {[%emt 0:01:34]} 24. a4 {[%emt 0:00:46]} Bh4 {[%emt 0:05:29]} 25. Qb3 {[%emt 0:02:56]} Qc6 {[%emt 0:07:01]} (25... Rb8 $14) 26. dxe5 {[%emt 0:06:33]} dxe5 {[%emt 0:02:25]} 27. Qxb6 {[%emt 0:01:36]} Bxg3 {[%emt 0:03:30]} 28. hxg3 {[%emt 0:01:08]} Nh3+ {[%emt 0:00:35] [#]} 29. Kh2 $1 {[%emt 0:01:00]} Nxf2 {[%emt 0:01:13]} 30. Qxf2 {[%emt 0:00:10]} Rxd1 {[%emt 0:00:13]} 31. Rxd1 {[%emt 0:00:08]} Qxa4 {[%emt 0:00:12]} 32. Re1 {[%emt 0:00:18]} (32. Rd6 $16) 32... Qc6 {[%emt 0:01:58]} 33. Bd3 {[%emt 0:01:59]} Qd6 {[%emt 0:01:23]} 34. Qe3 {[%emt 0:03:19]} a5 {[%emt 0:03:06]} 35. Bc2 {[%emt 0:01:52]} Qc6 {[%emt 0:02:40]} 36. Qd3 {[%emt 0:08:14] g} g6 {[%emt 0:00:29]} 37. Qe3 {[%emt 0:03:59]} Kg7 {[%emt 0:01:11]} 38. Be4 {[%emt 0:00:38]} Qb5 {[%emt 0:01:30]} 39. Bxb7 {[%emt 0:01:30]} Qxb7 {[%emt 0:00:01]} 40. Qc5 {[%emt 0:00:14]} Qxb2 {[%emt 0:02:10]} 41. Rxe5 {[%emt 0:30:54]} Rd8 {[%emt 0:34:42]} 42. Re7 {[%emt 0:03:04]} Qa2 {[%emt 0:04:23]} 43. c4 {[%emt 0:05:22]} a4 {[%emt 0:00:00]} 44. Ra7 {[%emt 0:00:00]} Qb3 {[%emt 0:00:00]} 45. f4 {[%emt 0:00:00]} Qd1 {[%emt 0:00:00]} 46. Ra5 {[%emt 0:00:00]} Re8 {[%emt 0:00:00]} 47. Qa3 {[%emt 0:00:00]} Re1 {[%emt 0:00:00]} 48. Qc3+ {[%emt 0:00:00]} Kh7 {[%emt 0:00:00]} 49. g4 {[%emt 0:00:00]} Rh1+ {[%emt 0:00:00]} 50. Kg3 {[%emt 0:00:00]} Qg1 {[%emt 0:00:11]} 51. Qd2 {[%emt 0:00:00]} Qh2+ {[%emt 0:01:41]} 52. Kf3 {[%emt 0:00:00]} Rf1+ {[%emt 0:01:09]} 53. Ke4 {[%emt 0:00:00]} Qg3 {[%emt 0:01:15] Ra} 54. Ra7 {[%emt 0:00:00] [#]} Re1+ $1 {[%emt 0:01:05]} 55. Kd4 {[%emt 0:00:00]} Kg7 {[%emt 0:00:57]} 56. Kc5 {[%emt 0:00:00]} Re8 {[%emt 0:00:42]} 57. Qd7 {[%emt 0:00:00]} Qa3+ {[%emt 0:00:43]} 58. Kc6 {[%emt 0:00:00]} Rf8 {[%emt 0:00:36]} 59. f5 {[%emt 0:00:16]} Qb2 {[%emt 0:00:31]} 60. fxg6 {[%emt 0:07:00]} Qxg2+ {[%emt 0:00:29]} 61. Qd5 {[%emt 0:03:45]} Qxd5+ {[%emt 0:00:14]} 62. cxd5 {[%emt 0:00:10]} Kxg6 {[%emt 0:00:11]} 63. Rxa4 {[%emt 0:01:28]} Kg5 {[%emt 0:00:18]} 64. d6 {[%emt 0:00:29]} f5 {[%emt 0:00:24]} 65. gxf5 {[%emt 0:00:36]} Kxf5 {[%emt 0:00:05]} 66. d7 {[%emt 0:00:12]} h5 {[%emt 0:00:38]} 67. Rd4 {[%emt 0:02:49]} Rd8 {[%emt 0:00:25]} 68. Kc7 {[%emt 0:00:10]} Rh8 {[%emt 0:00:28]} 69. d8=Q {[%emt 0:00:07]} Rxd8 {[%emt 0:00:01]} 70. Rxd8 $11 {[%emt 0:06:09]} h4 {[%emt 0:00:34]} 71. Kd6 {[%emt 0:01:04]} h3 {[%emt 0:00:52]} 72. Kd5 {[%emt 0:02:40]} Kf4 {[%emt 0:00:59]} 1/2-1/2

[Event "2nd AICF Women-GM 2018"]
[Site "Hyderabad"]
[Date "2018.08.14"]
[Round "8"]
[White "Nakhbayeva, Guliskhan"]
[Black "Aakanksha Hagawane"]
[Result "1-0"]
[ECO "A50"]
[WhiteElo "2352"]
[BlackElo "2292"]
[Annotator "NA"]
[PlyCount "71"]
[EventDate "2018.08.09"]
[EventType "tourn"]
[EventCountry "IND"]
[SourceTitle "playchess.com"]
[Source "ChessBase"]
[SourceQuality "1"]
[TimeControl "40/5400+30:1800+30"]

{[%evp 9,57,51,70,72,32767,32767,32767,32767,32767,32767,41,46,85,61,69,54,88,32767,32767,104,104,32767,110,55,107,108,154,159,156,122,120,76,114,57,41,-108,-80,-115,-107,-105,32767,32767,32767,32767,32767,-109,32767,-116,-110,-130]} 1. d4 {[%emt 0:00:00]} Nf6 {[%emt 0:00:00]} 2. c4 {[%emt 0:00:00]} Nc6 {[%emt 0:00:00]} 3. Nc3 {[%emt 0:00:00]} e5 {[%emt 0:00:00]} 4. d5 {[%emt 0:00:02]} Ne7 {[%emt 0:00:03]} 5. h4 {[%emt 0:00:14] A50: Queen's Fianchetto Defence (1 d4 Nf6 2 c4 b6)} h5 {[%emt 0:02:07]} 6. Bg5 {[%emt 0:00:06] LiveBook: 11 Games} Ng6 {[%emt 0:02:54]} 7. e3 {[%emt 0:00:08]} Be7 {[%emt 0:00:23]} 8. Bd3 {[%emt 0:01:29]} d6 {[%emt 0:01:52]} 9. Qc2 {[%emt 0:00:21]} (9. Nf3 Nf8 10. Nd2 Ng4 11. Bxe7 Qxe7 12. Qe2 f5 {1-0 (65) Ivanchuk,V (2771)-Bauer,C (2664) Cap d'Agde 2012}) 9... Nf8 $1 {[%emt 0:04:34]} 10. Nge2 {[%emt 0:06:51]} c6 $146 {[%emt 0:10:46]} ({Predecessor:} 10... N8d7 11. Ng3 Nc5 12. Bf5 Ng8 {½-½ (37) Bouget,A (2210)-Ibrahim,H (2309) Paris 2017}) 11. dxc6 {[%emt 0:12:07]} bxc6 {[%emt 0:00:06]} 12. O-O-O {[%emt 0:00:06]} Ne6 {[%emt 0:15:00]} 13. Be4 {[%emt 0:07:29]} Bd7 {[%emt 0:02:11]} 14. Bxf6 {[%emt 0:01:42]} gxf6 {[%emt 0:00:05]} 15. Ng3 {[%emt 0:00:09]} Nc5 {[%emt 0:03:11] [#]} 16. Bf3 {[%emt 0:01:21]} (16. Bf5 $1 $16) 16... Qb6 {[%emt 0:05:14]} 17. Nxh5 {[%emt 0:04:21]} O-O-O {[%emt 0:00:39]} 18. Ng3 {[%emt 0:01:22]} Be6 {[%emt 0:04:48]} 19. Na4 {[%emt 0:13:51]} Nxa4 {[%emt 0:01:44]} 20. Qxa4 {[%emt 0:00:02]} Kc7 {[%emt 0:00:08]} 21. Rd2 {[%emt 0:08:45]} (21. Qc2 $16) 21... f5 {[%emt 0:03:18]} 22. e4 $2 {[%emt 0:04:31]} (22. h5 $14 {bleibt weiter vorne.}) 22... Bxh4 {[%emt 0:03:57]} 23. c5 {[%emt 0:10:46]} Qxc5+ {[%emt 0:09:08]} 24. Kb1 {[%emt 0:00:40]} Bxg3 {[%emt 0:14:24]} 25. Rc1 {[%emt 0:00:03]} Qb6 {[%emt 0:00:06]} 26. fxg3 {[%emt 0:00:19]} fxe4 {[%emt 0:01:36]} 27. Qxe4 {[%emt 0:04:07]} c5 {[%emt 0:00:38]} 28. g4 {[%emt 0:00:57]} Rb8 {[%emt 0:01:15]} 29. a3 $17 {[%emt 0:01:22]} f6 {[%emt 0:02:26]} 30. Qg6 {[%emt 0:03:12]} Rbf8 {[%emt 0:01:51]} 31. Qg7+ {[%emt 0:02:44]} Bf7 {[%emt 0:01:40]} 32. Ka1 {[%emt 0:01:38]} Qb3 {[%emt 0:01:53]} 33. Bd5 {[%emt 0:00:09]} Qe3 {[%emt 0:00:03]} 34. Bxf7 {[%emt 0:01:57]} Qxd2 {[%emt 0:00:17]} 35. Bd5+ {[%emt 0:04:03]} Kd8 {[%emt 0:00:07]} 36. Be6 1-0

[Event "2nd AICF Women-GM 2018"]
[Site "Hyderabad"]
[Date "2018.08.14"]
[Round "8"]
[White "Nandhidhaa, PV."]
[Black "Babiy, Olga"]
[Result "1-0"]
[ECO "A04"]
[WhiteElo "2266"]
[BlackElo "2291"]
[Annotator "NA"]
[PlyCount "83"]
[EventDate "2018.08.09"]
[EventType "tourn"]
[EventCountry "IND"]
[SourceTitle "playchess.com"]
[Source "ChessBase"]
[SourceQuality "1"]
[TimeControl "40/5400+30:1800+30"]

{[%evp 11,60,26,20,32767,30,32767,32767,24,34,28,70,70,67,66,80,32767,66,63,83,76,139,147,153,68,69,56,80,51,74,93,83,69,90,41,51,52,135,75,112,32767,32767,32767,32767,182,197,32767,32767,70,32767,61,97]} 1. Nf3 {[%emt 0:00:00]} e6 {[%emt 0:00:16]} 2. g3 {[%emt 0:02:24]} b5 {[%emt 0:00:27]} 3. Bg2 {[%emt 0:00:23]} Bb7 {[%emt 0:00:03]} 4. O-O {[%emt 0:00:12]} Nf6 {[%emt 0:00:09]} 5. d3 {[%emt 0:00:16]} d5 {[%emt 0:01:31]} 6. e4 dxe4 {[%emt 0:08:57] A05: Übergänge in verschiedene Eröffnungen} 7. Nfd2 {[%emt 0:00:56]} Be7 {[%emt 0:02:11]} (7... Nc6 8. Nxe4 Nxe4 9. Bxe4 Rb8 10. a4 b4 11. Be3 Nd4 12. Bxb7 Rxb7 13. Nd2 Be7 14. Bxd4 Qxd4 15. Qf3 Qd5 16. Kg2 {½-½ (16) Herraiz Hidalgo,H (2430)-Fluvia Poyatos,J (2493) Barcelona 2018}) 8. Nc3 {[%emt 0:00:43]} a6 {[%emt 0:02:48]} 9. Ndxe4 {[%emt 0:01:04]} Nxe4 {[%emt 0:00:08]} 10. Nxe4 {[%emt 0:00:12]} Qc8 $146 {[%emt 0:04:27]} ({Vorgänger:} 10... O-O 11. Nf6+ Bxf6 12. Bxb7 {½-½ (63) Parvanyan,A (2370)-Goldschmidt,C (2209) Neustadt an der Weinstrasse 2018}) 11. Qg4 {[%emt 0:03:59]} Kf8 {[%emt 0:15:44]} 12. Qh5 {[%emt 0:12:41]} Nd7 {[%emt 0:01:31]} 13. a4 {[%emt 0:01:24]} b4 {[%emt 0:07:41]} 14. Bg5 {[%emt 0:09:34]} f6 {[%emt 0:01:11]} 15. Bd2 {[%emt 0:04:23]} f5 {[%emt 0:13:42]} ({Better is} 15... a5) 16. Ng5 {[%emt 0:03:53]} Bxg5 {[%emt 0:00:04]} 17. Bxb7 {[%emt 0:02:19]} ({Don't take} 17. Bxg5 Bxg2 18. Kxg2 h6 $14) (17. Qxg5 $16 a5 18. Rfe1 Bxg2 19. Kxg2 (19. Rxe6 Bh3 $16)) 17... Qxb7 {[%emt 0:00:11]} 18. Bxg5 {[%emt 0:00:07]} Ne5 {[%emt 0:03:25]} 19. f3 $1 Re8 {[%emt 0:09:49]} 20. Rae1 {[%emt 0:06:56]} Nf7 {[%emt 0:00:02]} 21. Bd2 {[%emt 0:01:34]} a5 {[%emt 0:01:26]} 22. Qh4 {[%emt 0:02:54]} Qd5 {[%emt 0:02:02]} 23. Qf4 {[%emt 0:02:27]} Qd6 {[%emt 0:02:20]} (23... Re7 $14) 24. Qc4 {[%emt 0:01:26]} h5 {[%emt 0:04:08]} 25. d4 {[%emt 0:10:55]} g5 {[%emt 0:00:38]} 26. c3 b3 27. Qxb3 {[%emt 0:02:14]} Kg7 {[%emt 0:10:42]} 28. c4 Qxd4+ {[%emt 0:00:20] [#]} 29. Qe3 {[%emt 0:03:38]} (29. Rf2 $1 $16 e5 30. Bxa5) 29... Qxc4 {[%emt 0:01:57]} 30. Rc1 $14 {[%emt 0:03:18]} Qxa4 {[%emt 0:00:01]} 31. Rxc7 {[%emt 0:01:05]} Kg6 {[%emt 0:01:08]} 32. Rfc1 {[%emt 0:02:30]} Rhf8 {[%emt 0:01:07]} 33. R1c6 {[%emt 0:02:20]} Qd1+ {[%emt 0:00:33]} 34. Kf2 {[%emt 0:03:27]} h4 {[%emt 0:03:18]} 35. gxh4 {[%emt 0:05:03]} Qh1 {[%emt 0:01:01]} 36. Rxe6+ {[%emt 0:05:17]} Rxe6 {[%emt 0:02:22]} 37. Qxe6+ {[%emt 0:00:06]} Kh5 {[%emt 0:00:01]} 38. Bf4 {[%emt 0:04:15]} Qb1 {[%emt 0:01:06]} 39. Rxf7 {[%emt 0:04:24]} Qxb2+ {[%emt 0:00:03]} 40. Kf1 {[%emt 0:00:56]} Qb1+ {[%emt 0:00:47]} 41. Kg2 {[%emt 0:30:30]} Qc2+ {[%emt 0:30:02]} 42. Kh3 {[%emt 0:00:34]} 1-0

[Event "2nd AICF Women-GM 2018"]
[Site "Hyderabad"]
[Date "2018.08.14"]
[Round "8"]
[White "Monnisha G K"]
[Black "Prudnykova, Olga"]
[Result "1-0"]
[ECO "B40"]
[WhiteElo "2219"]
[BlackElo "2272"]
[Annotator "ChessBase"]
[PlyCount "57"]
[EventDate "2018.08.09"]
[EventType "tourn"]
[EventCountry "IND"]
[SourceTitle "playchess.com"]
[Source "ChessBase"]
[SourceQuality "1"]
[TimeControl "40/5400+30:1800+30"]

1. e4 {[%emt 0:00:00]} c5 {[%emt 0:00:00]} 2. Nf3 {[%emt 0:00:00]} e6 {[%emt 0:00:00]} 3. d4 {[%emt 0:00:00]} cxd4 {[%emt 0:00:00]} 4. Nxd4 {[%emt 0:00:00]} Nf6 {[%emt 0:00:00]} 5. Nc3 {[%emt 0:00:07]} Qb6 {[%emt 0:00:00]} 6. Nb3 {[%emt 0:03:03]} Bb4 {[%emt 0:00:08]} 7. Bd3 {[%emt 0:01:05]} d5 {[%emt 0:00:13]} 8. exd5 {[%emt 0:03:04]} Nxd5 {[%emt 0:00:05]} 9. O-O {[%emt 0:04:38]} Nxc3 {[%emt 0:00:33]} 10. bxc3 {[%emt 0:02:22]} Bxc3 {[%emt 0:00:05]} 11. Rb1 {[%emt 0:03:36]} Qc7 {[%emt 0:00:16]} 12. Ba3 {[%emt 0:02:17]} Nc6 {[%emt 0:00:26]} 13. Be4 {[%emt 0:13:16]} Nb4 {[%emt 0:13:34]} 14. Nd4 {[%emt 0:04:52]} Qe5 {[%emt 0:29:23]} 15. Rxb4 {[%emt 0:01:56]} Bxb4 {[%emt 0:06:26]} 16. Nc6 {[%emt 0:00:50]} Qc7 {[%emt 0:04:44]} 17. Nxb4 {[%emt 0:01:35]} f5 {[%emt 0:04:16]} 18. Bf3 {[%emt 0:12:10]} Qc3 {[%emt 0:01:38]} 19. Nc6 {[%emt 0:04:14]} Kf7 {[%emt 0:05:35]} 20. Qd6 {[%emt 0:00:56]} Re8 {[%emt 0:00:09]} 21. Qc7+ {[%emt 0:01:49]} Kf6 {[%emt 0:03:22]} 22. Be7+ {[%emt 0:00:13]} Rxe7 {[%emt 0:00:58]} 23. Qxe7+ {[%emt 0:00:02]} Kg6 {[%emt 0:00:04]} 24. Qe8+ {[%emt 0:00:28]} Kf6 {[%emt 0:00:24]} 25. Qf8+ {[%emt 0:00:46]} Kg6 {[%emt 0:00:05]} 26. Ne7+ {[%emt 0:00:07]} Kh6 {[%emt 0:01:46]} 27. Qf7 {[%emt 0:00:51]} g6 {[%emt 0:00:21]} 28. Ng8+ {[%emt 0:00:39]} Kg5 {[%emt 0:00:35]} 29. Qe7+ {[%emt 0:00:04]} 1-0

[Event "2nd AICF Women-GM 2018"]
[Site "Hyderabad"]
[Date "2018.08.14"]
[Round "8"]
[White "Chitlange Sakshi"]
[Black "Vo, Thi Kim Phung"]
[Result "1/2-1/2"]
[ECO "D35"]
[WhiteElo "2144"]
[BlackElo "2377"]
[Annotator "NA"]
[PlyCount "134"]
[EventDate "2018.08.09"]
[EventType "tourn"]
[EventCountry "IND"]
[SourceTitle "playchess.com"]
[Source "ChessBase"]
[SourceQuality "1"]
[TimeControl "40/5400+30:1800+30"]

1. d4 {[%emt 0:00:00]} d5 {[%emt 0:00:00]} 2. c4 {[%emt 0:00:00]} e6 {[%emt 0:00:00]} 3. Nc3 {[%emt 0:00:09]} Nf6 {[%emt 0:00:00]} 4. cxd5 {[%emt 0:01:49]} exd5 {[%emt 0:00:00]} 5. Bg5 {[%emt 0:00:08]} c6 {[%emt 0:00:03]} 6. e3 {[%emt 0:00:21]} h6 {[%emt 0:00:32] LiveBook: 135 Games} 7. Bh4 {[%emt 0:01:33]} Bf5 {[%emt 0:00:12]} 8. Qf3 {[%emt 0:05:03] D35: Queen's Gambit Declined: Exchange Variation} (8. Bd3 Bxd3 9. Qxd3 Be7 10. Nge2 O-O 11. f3 Re8 12. O-O Nbd7 13. Rad1 b5 14. Bf2 Bf8 15. Ng3 Rc8 {1-0 (60) Duda,J (2706)-Meier,G (2655) Heraklio 2017}) 8... Bh7 {[%emt 0:00:10]} 9. Bxf6 {[%emt 0:00:29]} Qxf6 {[%emt 0:00:10]} 10. Qxf6 {[%emt 0:01:19]} gxf6 {[%emt 0:00:07]} 11. Kd2 {[%emt 0:05:45]} Nd7 {[%emt 0:00:15]} 12. Bd3 {[%emt 0:00:40]} Bxd3 {[%emt 0:00:08]} 13. Kxd3 {[%emt 0:00:02]} Rg8 {[%emt 0:00:42]} 14. g3 {[%emt 0:01:19]} f5 {[%emt 0:00:15]} 15. Nf3 {[%emt 0:06:24]} Be7 $146 {[%emt 0:00:15]} ({Predecessor:} 15... Nf6) 16. Rhg1 {[%emt 0:10:37]} Bf6 {[%emt 0:02:44]} 17. b4 {[%emt 0:03:19]} Nb6 {[%emt 0:02:00]} 18. b5 {[%emt 0:03:53]} Kd7 {[%emt 0:00:34]} 19. bxc6+ {[%emt 0:04:44]} bxc6 {[%emt 0:00:02]} 20. Nd2 {[%emt 0:00:46]} Be7 {[%emt 0:04:23]} 21. Rab1 {[%emt 0:01:47]} Rab8 {[%emt 0:00:19]} 22. Rgc1 {[%emt 0:05:32]} a5 {[%emt 0:03:05]} 23. Nb3 {[%emt 0:04:25]} Ba3 {[%emt 0:04:15]} 24. Rg1 {[%emt 0:04:40]} Bb4 {[%emt 0:01:46]} 25. a3 {[%emt 0:04:49]} Bxc3 {[%emt 0:02:04]} 26. Nc5+ {[%emt 0:00:53]} Kd6 {[%emt 0:03:20]} 27. Na6 {[%emt 0:06:46]} Rb7 {[%emt 0:00:01]} 28. Nc5 {[%emt 0:00:17]} Rbb8 {[%emt 0:00:01]} 29. Kxc3 {[%emt 0:02:13]} Nc4 {[%emt 0:00:31]} 30. a4 {[%emt 0:03:00]} Rge8 {[%emt 0:04:11]} 31. Rb7 {[%emt 0:04:22]} Rxb7 {[%emt 0:00:20]} 32. Nxb7+ {[%emt 0:00:01]} Ke7 {[%emt 0:00:58] [#]} (32... Kc7 $11 33. Nc5 Nd6) 33. Rb1 $1 {[%emt 0:00:52]} Kf6 {[%emt 0:08:26]} (33... f4 $16 {was necessary.}) 34. Nc5 {[%emt 0:01:58]} Re7 {[%emt 0:03:49]} 35. Rb8 {[%emt 0:01:22]} Rc7 {[%emt 0:00:35]} 36. Ra8 {[%emt 0:01:29]} Kg5 {[%emt 0:02:21]} 37. Rg8+ {[%emt 0:01:52]} Kf6 {[%emt 0:00:11]} 38. h4 {[%emt 0:02:08]} Nd6 {[%emt 0:08:06]} 39. f3 {[%emt 0:08:14]} Re7 {[%emt 0:13:13]} 40. Kd3 {[%emt 0:01:28]} Nc4 {[%emt 0:02:52]} (40... Rc7 $16 41. Ra8 Nc4) 41. e4 {[%emt 0:30:25]} fxe4+ {[%emt 0:30:13]} 42. fxe4 {[%emt 0:00:09]} Nb2+ {[%emt 0:00:33]} 43. Kc3 {[%emt 0:02:43]} Nd1+ {[%emt 0:02:45]} 44. Kd2 {[%emt 0:00:49]} Nf2 {[%emt 0:00:27]} 45. e5+ {[%emt 0:00:45]} Kf5 {[%emt 0:00:01]} 46. Ke3 {[%emt 0:00:00]} Ng4+ {[%emt 0:00:00]} 47. Kf3 {[%emt 0:00:00]} Nh2+ {[%emt 0:00:00]} 48. Ke2 {[%emt 0:00:00]} Ng4 {[%emt 0:00:00]} 49. Rc8 {[%emt 0:00:00]} Ra7 {[%emt 0:00:00]} 50. Rxc6 {[%emt 0:00:00]} Ra8 {[%emt 0:00:00]} 51. Rb6 {[%emt 0:00:00]} h5 {[%emt 0:00:00]} 52. Rb7 {[%emt 0:00:00]} Nh6 {[%emt 0:00:00]} 53. Kf3 {[%emt 0:00:00]} Rc8 {[%emt 0:00:00]} 54. Rb5 {[%emt 0:00:00]} Ng4 {[%emt 0:00:00]} 55. Rxa5 {[%emt 0:00:00]} Nh2+ {[%emt 0:00:00]} 56. Kg2 {[%emt 0:00:00]} Ng4 {[%emt 0:00:00]} 57. Rb5 {[%emt 0:00:00]} Ne3+ {[%emt 0:00:00]} 58. Kf2 {[%emt 0:00:00]} Nc2 {[%emt 0:00:00]} 59. Nb7 {[%emt 0:00:00]} Rc3 {[%emt 0:00:00]} 60. Rxd5 {[%emt 0:00:00]} Ke4 {[%emt 0:00:00]} 61. Rc5 {[%emt 0:00:00]} Rf3+ {[%emt 0:00:00]} 62. Kg2 {[%emt 0:01:05]} Ne3+ {[%emt 0:00:00]} 63. Kh2 {[%emt 0:05:21]} Rf2+ {[%emt 0:00:00]} 64. Kg1 $11 {[%emt 0:00:22]} (64. Kh3 {wird mattgesetzt.} Nf1 65. Nd6+ Kxd4 66. Rc4+ Kd5 67. Rd4+ Kxd4 68. Nf5+ Kxe5 69. Nh6 Rh2#) 64... Rf1+ {[%emt 0:00:00]} 65. Kh2 {[%emt 0:00:04]} Rf2+ {[%emt 0:04:23]} 66. Kg1 {[%emt 0:00:06]} Rf1+ {[%emt 0:15:49]} 67. Kh2 {[%emt 0:01:11]} Rf2+ 1/2-1/2